bitfinex/quotes_BTCUSD_20251224
["timestamp","ask_amount","ask_price","bid_price","bid_amount"]
[1766589197197,0.00035507,86985.0,86980.0,0.01149689]
[1766589197602,0.00035507,86985.0,86979.0,0.01149702]
[1766589197812,0.00035507,86985.0,86979.0,0.06898197]
[1766589198012,0.00035507,86985.0,86979.0,0.01149702]
[1766589198389,0.00035507,86985.0,86982.0,0.01149663]
[1766589198640,0.00035507,86985.0,86983.0,0.05748224]
[1766589199281,0.00035507,86985.0,86982.0,0.01149663]
[1766589199492,0.00035507,86985.0,86984.0,0.05748183]
[1766589199706,0.00035507,86985.0,86983.0,0.057482]
[1766589200059,0.00987943,86991.0,86983.0,0.01149649]
[1766589200294,0.0114957,86989.0,86983.0,0.00010663]
[1766589200499,0.00987943,86991.0,86983.0,0.00010663]
[1766589200743,0.00987943,86991.0,86984.0,0.01149636]
[1766589200941,0.00987943,86991.0,86984.0,0.06897792]
[1766589201134,0.00987943,86991.0,86985.0,0.01149623]
[1766589201481,0.00987943,86991.0,86983.0,0.00010663]
[1766589201716,0.01149557,86990.0,86983.0,0.00010663]
[1766589201937,0.01149597,86987.0,86983.0,0.00010663]
[1766589202159,0.0114961,86986.0,86983.0,6.3e-07]
[1766589202368,0.9816,87015.0,86983.0,0.01149712]
[1766589202583,0.9816,87007.0,86990.0,0.05747751]
[1766589202792,0.0116,87008.0,87000.0,0.01149425]
[1766589203002,0.0116,87008.0,86997.0,0.06896787]
[1766589203205,0.01149398,87002.0,86992.0,0.90279]
[1766589203412,0.0574764,86993.0,86983.0,0.90279063]
[1766589203615,0.00055,86992.0,86985.0,0.0116]
[1766589203823,0.00055,86992.0,86985.0,0.02309623]
[1766589204076,0.01149491,86995.0,86985.0,0.0116]
[1766589204293,0.01149464,86997.0,86985.0,0.08057715]
[1766589204499,0.01149464,86997.0,86986.0,0.0114961]
[1766589204907,0.01149464,86997.0,86985.0,0.08057715]
[1766589204908,0.01149504,86994.0,86985.0,0.0116]
[1766589205121,0.01149517,86993.0,86985.0,0.0116]
[1766589205524,0.06897073,86995.0,86985.0,0.0116]
[1766589205734,0.06897362,86990.0,86983.0,6.3e-07]
[1766589205955,0.06897387,86991.0,86983.0,6.3e-07]
[1766589206152,0.0689743,86989.0,86983.0,6.3e-07]
[1766589206309,0.01149557,86990.0,86983.0,6.3e-07]
[1766589206512,0.0114957,86989.0,86983.0,6.3e-07]
[1766589206729,0.06897376,86990.0,86983.0,6.3e-07]
[1766589206931,0.05747919,86988.0,86983.0,6.3e-07]
[1766589207132,0.0114957,86989.0,86983.0,6.3e-07]
[1766589207334,0.01149583,86988.0,86983.0,6.3e-07]
[1766589207554,0.06897411,86990.0,86983.0,6.3e-07]
[1766589207753,0.01149557,86990.0,86983.0,6.3e-07]
[1766589208329,0.0114957,86989.0,86983.0,6.3e-07]
[1766589208552,0.06897588,86987.0,86983.0,6.3e-07]
[1766589208888,0.06897588,86987.0,86975.0,0.0116]
[1766589208889,0.0114961,86986.0,86975.0,0.0116]
[1766589209097,0.06908328,86986.0,86975.0,0.0116]
[1766589209275,0.01160257,86986.0,86975.0,0.02309755]
[1766589209504,0.00010647,86986.0,86975.0,0.08058526]
[1766589209785,0.00010647,86986.0,86975.0,0.02309755]
[1766589210001,0.00010647,86986.0,86976.0,0.01149742]
[1766589210380,0.00010647,86986.0,86978.0,0.01149716]
[1766589210566,0.00010647,86986.0,86977.0,0.01149729]
[1766589210972,0.00010647,86986.0,86975.0,0.02309755]
[1766589211366,0.00010647,86986.0,86976.0,0.01149742]
[1766589212249,0.00010647,86986.0,86975.0,0.0116]
[1766589212501,0.00010647,86986.0,86949.0,0.80302]
[1766589212502,0.01149848,86968.0,86949.0,0.80302]
[1766589212730,0.0116,86969.0,86950.0,0.0116]
[1766589212983,0.0116,86969.0,86960.0,0.05749764]
[1766589213209,0.0116,86969.0,86955.0,0.0115002]
[1766589213428,0.0116,86969.0,86954.0,0.23000493]
[1766589213429,0.0116,86969.0,86961.0,0.0114994]
[1766589213646,0.0116,86969.0,86958.0,0.0114998]
[1766589214073,0.0116,86969.0,86959.0,0.01149967]
[1766589214277,0.0116,86969.0,86959.0,0.0689976]
[1766589214409,0.0116,86969.0,86960.0,0.01149954]
[1766589214608,0.0116,86969.0,86961.0,0.06899628]
[1766589214814,0.0116,86969.0,86960.0,0.06899723]
[1766589215014,0.0116,86969.0,86960.0,0.01149954]
[1766589215228,0.0116,86969.0,86959.0,0.01149967]
[1766589215474,0.06899137,86968.0,86956.0,0.0116]
[1766589215664,0.01149874,86966.0,86956.0,0.0116]
[1766589215961,0.83336834,86969.0,86957.0,0.01149993]
[1766589216173,0.82187,86969.0,86958.0,0.05749897]
[1766589216369,0.82187,86969.0,86959.0,0.01149967]
[1766589216575,0.82187,86969.0,86960.0,0.01149954]
[1766589216807,0.82187,86969.0,86959.0,0.01149967]
[1766589217641,0.82187,86969.0,86961.0,0.0114994]
[1766589217849,0.0116,86969.0,86961.0,0.0114994]
[1766589218021,0.0116,86969.0,86962.0,0.01149927]
[1766589218243,0.02309834,86969.0,86957.0,0.06899958]
[1766589218428,0.02309834,86969.0,86962.0,0.00011]
[1766589218586,0.08059064,86969.0,86962.0,0.00011]
[1766589219025,0.01149848,86968.0,86962.0,0.00011]
[1766589219402,0.02309834,86969.0,86962.0,0.00011]
[1766589219609,0.85268,86964.0,86956.0,0.00996185]
[1766589219819,0.85312,86956.0,86929.0,0.80699]
[1766589220022,0.01150033,86954.0,86946.0,0.00011]
[1766589220543,0.06900135,86955.0,86946.0,0.00011]
[1766589220747,0.85268,86956.0,86946.0,0.00011]
[1766589220914,0.85268,86956.0,86946.0,0.00046507]
[1766589220915,0.01150033,86954.0,86946.0,0.00046507]
[1766589221316,0.06900251,86955.0,86946.0,0.00046507]
[1766589221516,0.01150033,86954.0,86946.0,0.00046507]
[1766589221770,0.86418006,86956.0,86946.0,0.00046507]
[1766589221976,0.0116,86957.0,86956.0,0.000549]
[1766589222656,0.0116,86957.0,86953.0,0.01150046]
[1766589222978,0.0116,86957.0,86940.0,0.23004188]
[1766589223208,0.0116,86957.0,86952.0,0.01150059]
[1766589223418,0.0116,86957.0,86955.0,0.05750098]
[1766589223626,0.0116,86957.0,86953.0,0.06900239]
[1766589224051,0.86417887,86965.0,86954.0,0.01150033]
[1766589224254,0.0116,86964.0,86946.0,0.00046507]
[1766589224451,0.01149914,86963.0,86951.0,0.01150073]
[1766589224668,0.01149927,86962.0,86951.0,0.06900437]
[1766589224878,0.0116,86961.0,86951.0,0.01150073]
[1766589225005,0.0116,86961.0,86951.0,0.06900433]
[1766589225208,0.0116,86960.0,86949.0,0.01150099]
[1766589225463,0.0116,86960.0,86954.0,0.05750129]
[1766589225672,0.0116,86960.0,86953.0,0.06900266]
[1766589225917,0.0116,86960.0,86953.0,0.01150046]
[1766589226312,0.0116,86960.0,86950.0,0.06900499]
[1766589226520,0.05749929,86958.0,86947.0,0.80447]
[1766589226752,0.06899909,86958.0,86947.0,0.80447]
[1766589226930,0.06899803,86959.0,86947.0,0.81597125]
[1766589227196,0.06899803,86959.0,86947.0,0.02310125]
[1766589227398,0.0114998,86958.0,86947.0,0.0116]
[1766589227605,0.01150006,86956.0,86947.0,0.011051]
[1766589227780,0.01149993,86957.0,86946.0,0.01196646]
[1766589227976,0.85268,86958.0,86952.0,0.01150059]
[1766589228182,0.85268,86958.0,86947.0,0.24152379]
[1766589228618,0.06910253,86966.0,86954.0,0.01150033]
[1766589228820,0.01149914,86963.0,86952.0,0.01150059]
[1766589229020,0.00011,86966.0,86963.0,0.000549]
[1766589229313,0.0116,86969.0,86963.0,0.000549]
[1766589229514,0.0116,86969.0,86961.0,0.06899582]
[1766589229711,0.0116,86969.0,86962.0,0.01149927]
[1766589229864,0.0116,86969.0,86956.0,0.01150006]
[1766589229865,0.00011,86982.0,86964.0,0.73929]
[1766589230239,0.0116,86981.0,86972.0,0.06898707]
[1766589230420,0.0116,86981.0,86971.0,0.01149808]
[1766589230641,0.06908409,86981.0,86966.0,0.01149874]
[1766589230854,0.0116,86981.0,86970.0,0.05749104]
[1766589231058,0.0116,86981.0,86978.0,0.01149716]
[1766589231296,0.01171,86982.0,86978.0,0.01149716]
[1766589231479,0.01171,86982.0,86977.0,0.01149729]
[1766589231839,0.01171,86982.0,86978.0,0.01149716]
[1766589232266,0.01181647,86982.0,86978.0,0.01149716]
[1766589233368,0.01181647,86982.0,86974.0,0.06898554]
[1766589233594,0.0233131,86982.0,86970.0,0.73269821]
[1766589233996,0.00055,86970.0,86969.0,0.0116]
[1766589234522,0.85268,86979.0,86969.0,0.0116]
[1766589234849,0.86417702,86979.0,86969.0,0.02309834]
[1766589235058,0.85268,86979.0,86971.0,0.01149808]
[1766589235230,0.85268,86979.0,86970.0,0.06898885]
[1766589235435,0.85268,86979.0,86971.0,0.06898818]
[1766589235790,0.85268,86979.0,86972.0,0.01149795]
[1766589236193,0.85268,86979.0,86972.0,0.0689877]
[1766589236392,0.85268,86979.0,86969.0,0.0116]
[1766589236594,0.85244854,86979.0,86969.0,0.0116]
[1766589236799,0.85244854,86979.0,86971.0,0.01149808]
[1766589239309,0.92143092,86979.0,86969.0,0.0116]
[1766589239521,0.85244854,86979.0,86969.0,0.02309834]
[1766589239718,0.85244854,86979.0,86970.0,0.01149821]
[1766589240062,0.73273,86978.0,86969.0,0.0116]
[1766589240265,0.73273,86978.0,86970.0,0.05749051]
[1766589240512,0.73273,86978.0,86972.0,0.01149795]
[1766589240817,0.73273,86978.0,86969.0,0.0116]
[1766589240989,0.73273,86978.0,86970.0,0.01149821]
[1766589241195,0.73273,86978.0,86969.0,0.02309834]
[1766589241196,0.8017136,86978.0,86969.0,0.0116]
[1766589241396,0.74422716,86978.0,86969.0,0.0116]
[1766589241830,0.732181,86978.0,86971.0,0.01149808]
[1766589242099,0.01181647,86982.0,86969.0,0.0116]
[1766589242296,0.01149768,86974.0,86969.0,0.0116]
[1766589242472,0.000549,86969.0,86957.0,0.05749914]
[1766589242614,0.80172136,86968.0,86960.0,0.0116]
[1766589242836,0.73273,86968.0,86960.0,0.0116]
[1766589243366,0.73273,86968.0,86960.0,0.02309954]
[1766589243696,0.80172145,86968.0,86960.0,0.0116]
[1766589243917,0.000549,86960.0,86951.0,0.1485]
[1766589244131,0.01149927,86962.0,86951.0,0.0116]
[1766589244333,0.01149954,86960.0,86951.0,0.0116]
[1766589245275,0.0114994,86961.0,86951.0,0.0116]
[1766589246091,0.0114994,86961.0,86951.0,0.02310073]
[1766589246288,0.7442294,86961.0,86951.0,0.02310073]
[1766589246533,0.7442294,86961.0,86948.0,0.01150112]
[1766589246534,0.0114998,86958.0,86948.0,0.01150112]
[1766589246719,0.73273,86958.0,86949.0,0.06900596]
[1766589246881,0.73273,86958.0,86951.0,0.01150073]
[1766589247083,0.73273,86958.0,86950.0,0.06900498]
[1766589247396,0.73273,86958.0,86950.0,0.01150086]
[1766589247625,0.73273,86958.0,86951.0,0.06900434]
[1766589247996,0.73273,86958.0,86951.0,0.01150073]
[1766589248346,0.73273,86958.0,86950.0,0.06900389]
[1766589248563,0.05750516,86949.0,86947.0,0.0116]
[1766589248723,0.05750516,86949.0,86941.0,0.0116]
[1766589248724,0.05750563,86948.0,86941.0,0.0116]
[1766589248920,0.01150218,86940.0,86929.0,0.01150364]
[1766589249127,0.06901152,86942.0,86933.0,0.0116]
[1766589249471,0.01150178,86943.0,86933.0,0.02310311]
[1766589249676,0.01150192,86942.0,86933.0,0.0116]
[1766589249868,0.01150178,86943.0,86933.0,0.01195507]
[1766589250284,0.05750835,86944.0,86933.0,0.01195507]
[1766589250285,0.01150165,86944.0,86933.0,0.02345818]
[1766589250494,0.01150205,86941.0,86933.0,0.01195507]
[1766589250681,0.24154853,86940.0,86933.0,0.01195507]
[1766589250946,0.05751092,86940.0,86933.0,0.01140607]
[1766589251354,0.05751092,86940.0,86933.0,0.00035507]
[1766589251505,0.01150231,86939.0,86933.0,0.00035507]
[1766589252281,0.01150205,86941.0,86933.0,0.00035507]
[1766589252489,0.01150218,86940.0,86933.0,0.00035507]
[1766589252707,0.02310192,86942.0,86933.0,0.00035507]
[1766589252934,0.80174231,86941.0,86933.0,0.00035507]
[1766589253150,0.74423231,86939.0,86933.0,0.00035507]
[1766589253348,0.01150245,86938.0,86933.0,0.00035507]
[1766589253578,0.73273,86939.0,86932.0,0.01150324]
[1766589253780,0.73273,86939.0,86932.0,0.0001065]
[1766589253925,0.74423231,86939.0,86932.0,0.0001065]
[1766589254128,0.73273,86939.0,86932.0,0.0001065]
[1766589254841,0.01150245,86938.0,86932.0,0.0001065]
[1766589255043,0.01150258,86937.0,86932.0,0.0001065]
[1766589255328,0.80174472,86938.0,86928.0,0.00011]
[1766589255558,0.73283646,86938.0,86928.0,0.05762873]
[1766589255769,0.73283646,86938.0,86930.0,0.0115035]
[1766589255938,0.05751346,86937.0,86928.0,0.00011]
[1766589256093,0.73283646,86938.0,86928.0,0.00011]
[1766589256294,0.73283646,86938.0,86929.0,0.0690215]
[1766589256522,0.73283646,86938.0,86930.0,0.0115035]
[1766589256898,0.73283646,86938.0,86934.0,0.01150297]
[1766589257219,0.73283646,86938.0,86933.0,0.01150311]
[1766589257445,0.73228746,86938.0,86934.0,0.06901786]
[1766589257782,0.0116,86942.0,86935.0,0.01150284]
[1766589257989,0.0116,86941.0,86936.0,0.05751311]
[1766589258201,0.01105,86941.0,86934.0,0.01150297]
[1766589258409,0.01105,86941.0,86935.0,0.01150284]
[1766589259012,0.01105,86941.0,86936.0,0.01150271]
[1766589259214,0.01105,86941.0,86931.0,0.01150337]
[1766589259444,0.000549,86936.0,86933.0,0.0690186]
[1766589259636,0.000549,86936.0,86934.0,0.05751454]
[1766589259847,0.0116,86942.0,86939.0,0.01150231]
[1766589260004,0.0116,86942.0,86935.0,0.01150284]
[1766589260205,0.0116,86942.0,86936.0,0.01150271]
[1766589260523,0.0116,86942.0,86934.0,0.06901771]
[1766589260725,0.0116,86942.0,86934.0,0.01150297]
[1766589260937,0.0116,86942.0,86930.0,0.23006895]
[1766589260938,0.06901435,86939.0,86929.0,0.0116]
[1766589261148,0.05751754,86930.0,86928.0,1e-08]
[1766589261344,0.73273,86929.0,86928.0,1e-08]
[1766589263314,0.00010662,86930.0,86928.0,1e-08]
[1766589263513,0.0116,86939.0,86933.0,0.06901803]
[1766589263680,0.0116,86941.0,86933.0,0.01150311]
[1766589263887,0.0116,86941.0,86930.0,0.057517]
[1766589264096,0.0116,86941.0,86932.0,0.01150324]
[1766589264288,0.0116,86941.0,86933.0,0.01150311]
[1766589264832,0.0116,86941.0,86930.0,0.057517]
[1766589264833,0.0116,86941.0,86930.0,0.06902091]
[1766589265037,0.0116,86941.0,86930.0,0.0115035]
[1766589265192,0.02310205,86941.0,86931.0,0.01150337]
[1766589265393,0.02310205,86941.0,86930.0,0.0115035]
[1766589265593,0.0116,86941.0,86931.0,0.01150337]
[1766589265831,0.0116,86941.0,86934.0,0.01150297]
[1766589265996,0.73273,86950.0,86940.0,0.01150218]
[1766589266196,0.01149914,86963.0,86950.0,0.05750367]
[1766589266380,0.01149914,86963.0,86953.0,0.01150046]
[1766589266381,0.00011,86960.0,86953.0,0.01150046]
[1766589266583,0.00011,86960.0,86948.0,0.01150112]
[1766589266787,0.00011,86960.0,86949.0,0.01150099]
[1766589267314,0.00011,86960.0,86948.0,0.01150112]
[1766589267315,0.01149967,86959.0,86948.0,0.01150112]
[1766589267496,0.00011,86960.0,86950.0,0.01150086]
[1766589267902,0.00011,86960.0,86951.0,0.01150073]
[1766589268104,0.00011,86960.0,86945.0,0.0116]
[1766589268453,0.00055,86951.0,86945.0,0.0116]
[1766589268662,0.01150112,86948.0,86941.0,0.0116]
[1766589268803,0.01150099,86949.0,86940.0,0.00011]
[1766589269005,0.01150073,86951.0,86929.0,0.01150364]
[1766589269006,0.0116,86948.0,86929.0,0.01150364]
[1766589269230,0.0116,86948.0,86931.0,0.0116]
[1766589269231,0.01150205,86941.0,86931.0,0.0116]
[1766589269434,0.01150192,86942.0,86931.0,0.02310337]
[1766589269634,0.06901161,86942.0,86931.0,0.0116]
[1766589269838,0.06901161,86942.0,86931.0,0.02310337]
[1766589270036,0.76007,86947.0,86933.0,0.01150311]
[1766589270215,0.06900838,86946.0,86934.0,0.01150297]
[1766589270416,0.01150178,86943.0,86932.0,0.01150324]
[1766589270642,0.01150152,86945.0,86935.0,0.01150284]
[1766589271221,0.01150152,86945.0,86931.0,0.0116]
[1766589271425,0.06901293,86941.0,86931.0,0.0116]
[1766589271973,0.02310218,86940.0,86928.0,1e-08]
[1766589272119,0.00055,86931.0,86928.0,1e-08]
[1766589272462,0.06901681,86937.0,86928.0,1e-08]
[1766589272663,0.06901487,86938.0,86928.0,1e-08]
[1766589272808,0.01150258,86937.0,86928.0,1e-08]
[1766589273211,0.01150271,86936.0,86928.0,1e-08]
[1766589273415,0.01150245,86938.0,86928.0,1e-08]
[1766589274033,0.01150086,86950.0,86938.0,0.731209]
[1766589274289,0.0116,86949.0,86939.0,0.06901384]
[1766589274517,0.0116,86949.0,86939.0,0.01150231]
[1766589274735,0.0116,86949.0,86941.0,0.01150205]
[1766589274914,0.0116,86949.0,86938.0,0.01150245]
[1766589274915,0.0116,86949.0,86938.0,0.06901463]
[1766589275083,0.0116,86949.0,86939.0,0.01150231]
[1766589275266,0.0116,86949.0,86941.0,0.01150205]
[1766589275671,0.01150218,86940.0,86932.0,0.0116]
[1766589276054,0.01150231,86939.0,86932.0,0.0116]
[1766589276264,0.01150218,86940.0,86929.0,0.01150364]
[1766589276478,0.01150218,86940.0,86931.0,0.0116]
[1766589276479,0.01150231,86939.0,86931.0,0.0116]
[1766589276879,0.0116,86943.0,86931.0,0.0116]
[1766589277123,0.0116,86943.0,86936.0,0.01150271]
[1766589277380,0.0116,86943.0,86939.0,0.05751158]
[1766589277799,0.011051,86943.0,86940.0,0.01150218]
[1766589278005,0.011051,86943.0,86939.0,0.01150231]
[1766589278414,0.011051,86943.0,86940.0,0.01150218]
[1766589278606,0.011051,86943.0,86939.0,0.01150231]
[1766589278830,0.000549,86939.0,86934.0,0.02310297]
[1766589279027,0.000549,86939.0,86934.0,0.08061776]
[1766589279202,0.000549,86939.0,86935.0,0.01150284]
[1766589279526,0.01150205,86941.0,86934.0,0.0116]
[1766589279718,0.00055,86935.0,86934.0,0.0116]
[1766589279965,0.011051,86943.0,86934.0,0.0116]
[1766589280154,0.011051,86943.0,86936.0,0.06901623]
[1766589280297,0.011051,86943.0,86934.0,0.02310297]
[1766589280741,0.011051,86943.0,86934.0,0.06901759]
[1766589280947,0.011051,86943.0,86933.0,0.06901856]
[1766589281101,0.011051,86943.0,86933.0,0.01150311]
[1766589281321,0.011051,86943.0,86934.0,0.01150297]
[1766589281993,0.011051,86943.0,86935.0,0.01150284]
[1766589282323,0.011051,86943.0,86934.0,0.06901731]
[1766589282537,0.011051,86943.0,86935.0,0.01150284]
[1766589282750,0.011051,86943.0,86935.0,0.06901701]
[1766589282953,0.01071639,86943.0,86935.0,0.06901701]
[1766589283177,0.02221817,86943.0,86931.0,0.0116]
[1766589283391,0.000549,86935.0,86932.0,0.06901886]
[1766589283594,0.01071639,86943.0,86934.0,0.01150297]
[1766589283748,0.01071639,86943.0,86936.0,0.01150271]
[1766589284131,0.01071639,86943.0,86937.0,0.01150258]
[1766589284357,0.01071639,86943.0,86938.0,0.01150245]
[1766589284532,0.01071639,86943.0,86938.0,0.06901419]
[1766589284869,0.01071639,86943.0,86939.0,0.01150231]
[1766589286304,0.01071639,86943.0,86937.0,0.01150258]
[1766589286438,0.01071639,86943.0,86938.0,0.01150245]
[1766589286636,0.01071639,86943.0,86939.0,0.01150231]
[1766589286837,0.01071639,86943.0,86938.0,0.06901462]
[1766589287039,0.01071639,86943.0,86939.0,0.01150231]
[1766589287262,0.73017612,86949.0,86939.0,0.01150231]
[1766589287263,0.0116,86944.0,86939.0,0.01150231]
[1766589287498,0.66117,86959.0,86946.0,0.01150139]
[1766589287687,0.45986306,86983.0,86932.0,0.02291738]
[1766589287688,0.046,86970.0,86957.0,0.01149993]
[1766589287840,0.0116,86964.0,86959.0,0.05749836]
[1766589288047,0.0116,86971.0,86960.0,0.06899715]
[1766589288301,0.0116,86971.0,86960.0,0.01149954]
[1766589288506,0.05749374,86966.0,86956.0,0.0116]
[1766589288708,0.05749374,86966.0,86949.0,0.00011]
[1766589288709,0.66117,86963.0,86949.0,0.01171]
[1766589288922,0.23000667,86954.0,86939.0,0.01150231]
[1766589289218,0.05750365,86951.0,86942.0,0.0116]
[1766589289422,0.00055,86942.0,86932.0,0.01150324]
[1766589289632,0.00055,86942.0,86934.0,0.01150297]
[1766589289930,0.66117,86945.0,86937.0,0.01150258]
[1766589290314,0.66117,86945.0,86938.0,0.01150245]
[1766589290905,0.66117,86945.0,86936.0,0.01150271]
[1766589291314,0.66117,86945.0,86935.0,0.01150284]
[1766589291633,0.0116,86946.0,86938.0,0.05751217]
[1766589291812,0.0116,86946.0,86936.0,0.05751349]
[1766589292017,0.67277,86946.0,86936.0,0.05751349]
[1766589292312,0.67277,86946.0,86938.0,0.01150245]
[1766589293175,0.67277,86946.0,86939.0,0.01150231]
[1766589293536,0.67277,86946.0,86938.0,0.01150245]
[1766589294547,0.0116,86946.0,86940.0,0.01150218]
[1766589295705,0.67267046,86953.0,86941.0,0.01150205]
[1766589295706,0.66117,86953.0,86941.0,0.01150205]
[1766589295861,0.0116,86952.0,86941.0,0.01150205]
[1766589296042,0.0116,86952.0,86943.0,0.01150178]
[1766589296261,0.01150073,86951.0,86940.0,0.01150218]
[1766589296477,0.01150073,86951.0,86940.0,0.06901306]
[1766589296896,0.06900438,86951.0,86939.0,0.01150231]
[1766589297098,0.0116,86952.0,86933.0,0.0116]
[1766589297099,0.00055,86939.0,86933.0,0.0116]
[1766589297297,0.00055,86939.0,86933.0,0.02310311]
[1766589297473,0.67267139,86946.0,86934.0,0.01150297]
[1766589297676,0.01150152,86945.0,86933.0,0.01460608]
[1766589297879,0.0116,86944.0,86934.0,0.06901776]
[1766589298109,0.02310165,86944.0,86933.0,0.07212114]
[1766589298421,0.05750894,86943.0,86933.0,0.00310297]
[1766589298646,0.01150297,86934.0,86918.0,0.01150509]
[1766589298863,0.01150324,86932.0,86920.0,0.01150483]
[1766589299076,0.0115035,86930.0,86920.0,0.01150483]
[1766589299281,0.01150337,86931.0,86921.0,0.01150469]
[1766589299644,0.01150337,86931.0,86920.0,0.01150483]
[1766589299843,0.06902037,86931.0,86920.0,0.01150483]
[1766589300048,0.01150337,86931.0,86920.0,0.01150483]
[1766589300280,0.02310324,86932.0,86921.0,0.0690277]
[1766589300426,0.0116,86932.0,86921.0,0.0690277]
[1766589300629,0.01150152,86945.0,86932.0,0.000549]
[1766589300916,0.01150218,86940.0,86932.0,0.000549]
[1766589301085,0.01150218,86940.0,86926.0,0.06902371]
[1766589301086,0.01150245,86938.0,86926.0,0.06902371]
[1766589301338,0.0116,86937.0,86930.0,0.0115035]
[1766589301528,0.0116,86937.0,86927.0,0.06902286]
[1766589301881,0.0116,86937.0,86929.0,0.01150364]
[1766589302170,0.0116,86937.0,86928.0,0.01150377]
[1766589302409,0.0116,86937.0,86927.0,0.06902286]
[1766589302947,0.0116,86937.0,86930.0,0.0115035]
[1766589303079,0.02310258,86937.0,86927.0,0.0115039]
[1766589303285,0.0116,86937.0,86927.0,0.0115039]
[1766589303482,0.0116,86937.0,86931.0,0.01150337]
[1766589303686,0.0116,86937.0,86932.0,0.01150324]
[1766589303892,0.0116,86937.0,86931.0,0.05751631]
[1766589303893,0.0116,86937.0,86931.0,0.06901968]
[1766589304093,0.0116,86937.0,86932.0,0.01150324]
[1766589304293,0.0116,86937.0,86930.0,0.0115035]
[1766589304559,0.0116,86937.0,86928.0,0.06902256]
[1766589304715,0.0116,86937.0,86929.0,0.06902122]
[1766589304896,0.0116,86937.0,86929.0,0.01150364]
[1766589305117,0.011051,86937.0,86929.0,0.63848]
[1766589305463,0.0116,86937.0,86931.0,0.01150337]
[1766589305662,0.0116,86937.0,86930.0,0.0115035]
[1766589306025,0.000549,86930.0,86921.0,0.05752339]
[1766589306202,0.0115035,86930.0,86920.0,0.64998483]
[1766589306415,0.01150284,86935.0,86921.0,0.01150469]
[1766589306609,0.05751627,86932.0,86921.0,0.01150469]
[1766589306952,0.0116,86937.0,86925.0,0.02310417]
[1766589307155,0.01150271,86936.0,86925.0,0.0116]
[1766589307362,0.01150297,86934.0,86925.0,0.0116]
[1766589307604,0.000549,86925.0,86919.0,0.00050662]
[1766589307809,0.01201096,86919.0,86909.0,0.01216284]
[1766589308017,0.01150456,86922.0,86909.0,0.00065656]
[1766589308210,0.01150483,86920.0,86910.0,0.01150615]
[1766589308422,0.08062742,86922.0,86911.0,0.01150602]
[1766589308658,0.0116,86922.0,86913.0,0.01150575]
[1766589308854,0.0116,86922.0,86909.0,0.00065656]
[1766589308855,0.0116,86924.0,86918.0,0.70751047]
[1766589309082,0.0116,86926.0,86919.0,0.06902921]
[1766589309374,0.0117066,86926.0,86921.0,0.01150469]
[1766589309654,0.0116,86934.0,86923.0,0.01150443]
[1766589309803,0.0116,86934.0,86925.0,0.01150417]
[1766589310023,0.0116,86934.0,86927.0,0.0115039]
[1766589310230,0.0116,86934.0,86921.0,0.0116]
[1766589310231,0.69403,86946.0,86936.0,0.01150271]
[1766589310432,0.06900325,86954.0,86941.0,0.05750965]
[1766589310637,0.01150086,86950.0,86936.0,0.02310271]
[1766589310860,0.01150086,86950.0,86939.0,0.01150231]
[1766589311084,0.01150099,86949.0,86938.0,0.06901406]
[1766589311284,0.06900611,86949.0,86938.0,0.01150245]
[1766589311467,0.01150112,86948.0,86938.0,0.01150245]
[1766589311864,0.01150086,86950.0,86939.0,0.01150231]
[1766589311865,0.06900517,86950.0,86939.0,0.01150231]
[1766589312066,0.01150125,86947.0,86933.0,0.64998311]
[1766589312285,0.01150192,86942.0,86930.0,0.0116]
[1766589312477,0.01150231,86939.0,86930.0,0.0116]
[1766589312673,0.06901152,86942.0,86930.0,0.06911696]
[1766589312877,0.01150218,86940.0,86930.0,0.0116]
[1766589313115,0.01150205,86941.0,86930.0,0.08062094]
[1766589313339,0.01150192,86942.0,86931.0,0.06902017]
[1766589313498,0.01150192,86942.0,86930.0,0.0116]
[1766589313660,0.01150205,86941.0,86930.0,0.0116]
[1766589313869,0.01150152,86945.0,86933.0,0.01150311]
[1766589314088,0.01150192,86942.0,86932.0,0.01150324]
[1766589314823,0.01150192,86942.0,86931.0,0.01150337]
[1766589315022,0.01150192,86942.0,86932.0,0.01150324]
[1766589315229,0.01150165,86944.0,86933.0,0.01150311]
[1766589315643,0.08060839,86946.0,86936.0,0.01150271]
[1766589315869,0.08060839,86946.0,86933.0,0.01150311]
[1766589315870,0.01150165,86944.0,86933.0,0.01150311]
[1766589316015,0.01150165,86944.0,86934.0,0.01150297]
[1766589316219,0.01150152,86945.0,86934.0,0.01150297]
[1766589316839,0.02310139,86946.0,86935.0,0.01150284]
[1766589317041,0.05750863,86944.0,86933.0,0.01150311]
[1766589317249,0.01150192,86942.0,86932.0,0.01150324]
[1766589317490,0.01150178,86943.0,86928.0,0.06902144]
[1766589317737,0.000549,86930.0,86928.0,0.0116]
[1766589317915,0.000549,86930.0,86922.0,0.01150456]
[1766589318174,0.64799,86937.0,86932.0,0.05751585]
[1766589318509,0.01150112,86948.0,86932.0,0.63848]
[1766589318692,0.01150152,86945.0,86935.0,0.01150284]
[1766589319088,0.06900891,86946.0,86935.0,0.01150284]
[1766589319309,0.01150152,86945.0,86934.0,0.6220601]
[1766589319512,0.06901081,86943.0,86932.0,0.01150324]
[1766589319862,0.0115035,86930.0,86917.0,0.78698]
[1766589320063,0.01150364,86929.0,86920.0,0.0116]
[1766589321009,0.01150377,86928.0,86920.0,0.0116]
[1766589321446,0.01150377,86928.0,86917.0,0.0116]
[1766589321447,0.000549,86920.0,86917.0,0.0116]
[1766589321771,0.0115043,86924.0,86917.0,0.0116]
[1766589321970,0.0115043,86924.0,86914.0,0.01161562]
[1766589322168,0.65959,86927.0,86916.0,0.01150536]
[1766589322366,0.01150417,86925.0,86914.0,0.08074368]
[1766589322596,0.0116,86927.0,86914.0,0.6502966]
[1766589322806,0.01150205,86941.0,86926.0,0.01150403]
[1766589323028,0.01150231,86939.0,86926.0,0.70750296]
[1766589323225,0.01150337,86931.0,86924.0,0.0116]
[1766589323515,0.06902087,86931.0,86920.0,0.01150483]
[1766589323836,0.05751974,86927.0,86916.0,0.0116]
[1766589324190,0.01150403,86926.0,86916.0,0.0116]
[1766589324385,0.06902359,86927.0,86916.0,0.02310536]
[1766589324521,0.06902117,86930.0,86918.0,0.01150509]
[1766589324704,0.71710714,86931.0,86918.0,0.01150509]
[1766589324705,0.67109337,86931.0,86918.0,0.01150509]
[1766589325109,0.0115039,86927.0,86916.0,0.01150536]
[1766589325338,0.01150417,86925.0,86915.0,0.02310549]
[1766589325558,0.01150417,86925.0,86914.0,0.0002166]
[1766589325559,0.01150443,86923.0,86914.0,0.0002166]
[1766589325754,0.06902662,86923.0,86914.0,0.0002166]